bitfinex/quotes_ETHUSD_20250511
["timestamp","ask_amount","ask_price","bid_price","bid_amount"]
[1746946466513,3.96952754,2519.2,2518.0,8.0]
[1746946466682,0.11116835,2518.2,2518.1,0.03970416]
[1746946466882,3.96952754,2519.2,2518.1,0.03970416]
[1746946467084,0.11116835,2518.2,2518.1,0.03970416]
[1746946467382,3.96952754,2519.2,2518.1,10.92267458]
[1746946467691,0.11323232,2519.1,2518.1,10.88297042]
[1746946468603,0.11323232,2519.1,2518.2,0.03970419]
[1746946468902,3.96954392,2519.2,2518.2,0.03970419]
[1746946469109,0.11300306,2519.0,2518.2,0.03970419]
[1746946469415,0.11277379,2518.9,2518.3,8.0]
[1746946469620,10.82073291,2519.3,2518.3,8.0]
[1746946469983,0.11346155,2519.2,2518.3,8.0]
[1746946470397,0.11346155,2519.2,2518.4,0.03970421]
[1746946470609,0.11346155,2519.2,2518.4,1.09579138]
[1746946471693,4.74382006,2519.4,2518.4,1.09579138]
[1746946471914,0.11336819,2519.1,2518.4,1.09579138]
[1746946472109,4.74380477,2519.4,2518.4,1.09579138]
[1746946472433,0.11313893,2519.0,2518.4,1.09579138]
[1746946472610,3.60634694,2519.8,2518.5,1.27021383]
[1746946472933,4.06052876,2519.7,2518.7,8.0]
[1746946473091,0.58503712,2519.6,2518.7,8.0]
[1746946473301,0.67664848,2519.6,2518.7,8.0]
[1746946473606,0.67664848,2519.6,2518.8,1.1256]
[1746946473922,0.21938647,2519.5,2518.9,0.0396933]
[1746946474126,0.3108145,2519.5,2518.9,0.0396933]
[1746946474816,0.09142803,2519.5,2518.9,0.0396933]
[1746946475320,0.09124468,2519.4,2518.9,0.0396933]
[1746946475519,7.57499978,2519.8,2518.9,0.95622263]
[1746946475817,0.21934026,2519.7,2518.9,0.95622264]
[1746946476318,0.45716399,2519.6,2518.9,0.95622264]
[1746946476785,0.21934026,2519.5,2518.9,0.91652933]
[1746946477317,0.09124468,2519.4,2518.9,0.91652933]
[1746946477621,0.09124468,2519.4,2519.0,0.20421293]
[1746946477817,0.09124468,2519.4,2518.9,0.91652933]
[1746946478315,3.96904631,2519.5,2518.7,8.0]
[1746946478518,3.96960063,2519.2,2518.8,3.239]
[1746946478694,0.21921977,2519.1,2518.8,3.239]
[1746946478881,0.31317497,2519.1,2518.8,3.239]
[1746946479716,0.21921977,2519.0,2518.8,3.239]
[1746946479896,0.3126874,2519.0,2518.8,3.239]
[1746946480298,0.3126874,2519.0,2518.1,8.0]
[1746946480492,0.09346763,2519.0,2518.2,5.4679]
[1746946480691,4.74384057,2519.4,2518.2,5.4679]
[1746946480692,3.96954555,2519.2,2518.2,5.4679]
[1746946480897,0.09328421,2518.9,2518.2,5.4679]
[1746946481098,3.96953236,2519.2,2518.2,5.4679]
[1746946481285,4.74384057,2519.4,2518.2,5.4679]
[1746946481286,0.09286171,2518.8,2518.2,5.4679]
[1746946481486,4.74380665,2519.4,2518.3,1.67039]
[1746946481715,0.09267826,2518.7,2518.3,1.67039]
[1746946481925,4.33493426,2519.3,2518.3,1.67039]
[1746946482137,0.09227747,2518.6,2518.3,1.67039]
[1746946482326,3.96954498,2519.2,2518.3,1.67039]
[1746946482502,0.092094,2518.5,2518.4,0.713829]
[1746946482709,0.36549543,2519.1,2518.4,0.713829]
[1746946482891,0.092094,2518.5,2518.4,0.713829]
[1746946483197,0.36549543,2519.1,2518.4,0.713829]
[1746946483397,0.09301124,2519.0,2518.5,0.03970159]
[1746946483600,0.36549543,2519.3,2518.5,0.28209365]
[1746946483989,0.09337804,2519.2,2518.5,0.24239206]
[1746946484195,3.96857955,2519.8,2518.5,0.28208555]
[1746946484489,0.09429477,2519.7,2518.5,0.28208555]
[1746946485299,0.58472498,2519.6,2518.5,0.28208555]
[1746946485525,3.96914221,2519.5,2518.5,0.24239206]
[1746946485826,3.70027506,2519.5,2518.5,0.24239206]
[1746946486129,0.36545242,2519.4,2518.7,8.0]
[1746946486430,0.21927256,2519.3,2518.7,8.0]
[1746946486624,4.18863526,2519.3,2518.7,8.0]
[1746946486921,0.09422548,2519.2,2518.7,8.0]
[1746946487124,0.09422548,2519.2,2518.7,0.03969827]
[1746946487310,7.57549236,2519.5,2518.7,0.03969827]
[1746946487517,0.09378137,2519.1,2518.6,3.239]
[1746946487717,3.9692147,2519.4,2518.7,0.34813921]
[1746946487894,0.09359796,2519.0,2518.7,0.34813921]
[1746946488247,6.83834694,2519.8,2518.7,0.34813921]
[1746946488414,0.09341454,2518.9,2518.7,0.34813921]
[1746946488597,3.96915563,2519.5,2518.7,0.34813921]
[1746946488931,0.3136147,2519.4,2518.7,0.34813921]
[1746946489107,4.64829351,2519.4,2518.7,0.34813921]
[1746946489819,3.96952336,2519.2,2518.6,3.239]
[1746946490014,1.1468147,2519.4,2518.6,3.239]
[1746946490214,0.09378137,2519.1,2518.6,3.239]
[1746946490415,0.2192832,2519.3,2518.7,0.03969872]
[1746946490600,0.09359796,2519.0,2518.7,0.03969872]
[1746946490795,0.09341454,2518.9,2518.7,0.3918078]
[1746946491204,3.96937578,2519.3,2518.7,0.35210908]
[1746946491403,0.09323111,2518.8,2518.6,3.239]
[1746946491600,3.96926215,2519.4,2518.6,3.239]
[1746946491812,4.33507198,2519.3,2518.6,3.239]
[1746946492024,4.42922011,2519.3,2518.6,3.239]
[1746946492229,4.42922011,2519.3,2518.7,3.239]
[1746946492429,0.21952793,2519.2,2518.7,3.239]
[1746946492612,0.21952793,2519.2,2518.7,4.38713921]
[1746946492934,0.09378137,2519.1,2518.7,4.38713921]
[1746946493139,0.09378137,2519.1,2518.8,3.239]
[1746946493440,3.96929296,2519.4,2518.8,3.239]
[1746946493613,0.09359796,2519.0,2518.8,3.239]
[1746946493947,0.09354494,2518.9,2518.8,3.239]
[1746946494107,0.21964086,2519.3,2518.5,0.24239206]
[1746946494307,0.31373602,2519.2,2518.1,8.0]
[1746946494619,0.36627919,2519.1,2518.2,6.466]
[1746946494824,0.36627919,2519.1,2518.3,0.03969903]
[1746946495138,0.09372836,2519.0,2518.3,0.03969903]
[1746946495707,5.70155896,2519.6,2518.3,1.77231743]
[1746946495947,0.09458006,2519.5,2518.4,0.82383174]
[1746946496145,0.09458006,2519.5,2518.5,0.0396971]
[1746946496320,0.58617403,2519.4,2518.5,0.0396971]
[1746946496525,0.09432199,2519.3,2518.5,0.0396971]
[1746946497308,0.58617403,2519.2,2518.5,0.0396971]
[1746946497509,0.09395522,2519.1,2518.5,1.09931182]
[1746946498142,0.09395522,2519.1,2518.5,1.05961472]
[1746946498342,1.95243464,2519.0,2518.6,3.239]
[1746946498533,0.09371876,2518.9,2518.7,3.239]
[1746946499112,0.21981624,2518.8,2518.7,3.239]
[1746946499310,0.31335157,2518.8,2518.7,3.239]
[1746946500550,0.09353533,2518.8,2518.7,3.239]
[1746946500716,2.5540184,2519.2,2518.7,3.239]
[1746946500916,0.09375967,2519.1,2518.7,3.239]
[1746946501249,0.21997601,2519.0,2518.7,3.239]
[1746946501552,0.09339284,2518.9,2518.7,3.239]
[1746946501852,0.09339284,2518.9,2518.7,3.5629]
[1746946502355,0.785,2519.5,2518.8,0.03969996]
[1746946502552,0.09430979,2519.4,2518.8,0.03969996]
[1746946502714,0.21993818,2519.3,2518.8,0.03969996]
[1746946502914,0.46053783,2519.2,2518.8,0.39995996]
[1746946503216,0.46053783,2519.2,2519.0,1.7326184]
[1746946503414,0.46053783,2519.2,2519.1,0.03969455]
[1746946503622,0.36659477,2519.2,2519.0,8.0]
[1746946504036,6.48576688,2520.1,2519.0,8.0]
[1746946504237,0.21989076,2520.0,2519.1,1.1221]
[1746946504439,4.26774359,2520.0,2519.1,1.1221]
[1746946504827,0.3664378,2519.9,2519.1,1.1221]
[1746946505155,0.07920258,2519.8,2519.2,3.239]
[1746946505351,0.29909334,2519.8,2519.3,0.03968926]
[1746946505529,0.29909334,2519.8,2519.3,0.80176819]
[1746946506141,0.07920258,2519.8,2519.3,0.80176819]
[1746946506350,4.75313346,2520.1,2519.3,0.80176819]
[1746946506533,0.07950805,2520.0,2519.3,0.80176819]
[1746946506729,4.41397433,2520.0,2519.3,0.76207893]
[1746946507058,0.2197292,2519.9,2519.4,0.43979495]
[1746946507646,0.07920258,2519.8,2519.4,0.43979495]
[1746946508117,0.7917,2520.4,2519.4,0.43979495]
[1746946508455,0.07996616,2520.3,2519.4,0.43979495]
[1746946508861,0.58542647,2520.2,2519.4,0.43979495]
[1746946509069,0.58542647,2520.2,2519.5,0.92018739]
[1746946509272,0.0810366,2520.1,2519.5,0.92018739]
[1746946509847,0.0810366,2520.1,2519.6,0.03967829]
[1746946510044,7.18275297,2521.0,2519.7,0.55]
[1746946510045,0.7917,2521.0,2519.7,0.55]
[1746946510244,0.7917,2521.0,2519.9,8.0]
[1746946510457,0.7917,2521.0,2520.1,8.0]
[1746946510635,0.08225789,2520.9,2520.1,8.0]
[1746946511364,0.7917,2520.4,2520.0,3.218]
[1746946511533,0.08443632,2520.3,2520.0,3.218]
[1746946512060,0.08443632,2520.3,2520.0,3.5398]
[1746946512243,0.7926,2520.7,2520.0,3.5398]
[1746946512449,0.08426555,2520.2,2520.0,3.5398]
[1746946512637,0.7926,2520.7,2520.0,3.5398]
[1746946512957,0.08487624,2520.6,2520.0,3.5398]
[1746946513272,0.08487624,2520.6,2520.1,0.35398]
[1746946513450,0.08487624,2520.6,2520.0,3.218]
[1746946513757,4.05228567,2520.6,2520.0,3.218]
[1746946514272,3.96748558,2520.5,2519.4,8.0]
[1746946514571,0.08442625,2520.4,2519.6,3.25768128]
[1746946514785,3.96734421,2520.6,2519.7,0.73908687]
[1746946514960,0.08457892,2520.5,2519.7,0.73908687]
[1746946515574,3.96746496,2520.6,2519.7,0.73908687]
[1746946515870,0.08434381,2520.5,2519.7,0.73908687]
[1746946516075,0.08434381,2520.5,2519.8,1.19570869]
[1746946516470,4.05195239,2520.5,2519.8,1.19570869]
[1746946516675,0.08434381,2520.5,2519.8,1.19570869]
[1746946517442,3.96749441,2520.5,2519.8,1.19570869]
[1746946517643,0.08406453,2520.4,2519.8,1.19570869]
[1746946518144,4.39480184,2520.7,2519.8,1.19570869]
[1746946518343,4.05167922,2520.6,2519.8,1.19570869]
[1746946518581,3.96755864,2520.5,2519.8,1.19570869]
[1746946518786,0.08406453,2520.4,2519.8,1.19570869]
[1746946519690,0.7926,2520.7,2519.9,0.0396797]
[1746946519982,0.7913,2521.1,2519.9,0.0396797]
[1746946520181,3.9669652,2520.9,2519.9,0.99744753]
[1746946520495,0.08557983,2520.8,2519.9,0.99744753]
[1746946520673,3.96727357,2520.7,2519.9,0.99744753]
[1746946520874,4.05264515,2520.8,2520.0,3.218]
[1746946521077,7.56910822,2520.9,2520.0,3.218]
[1746946521391,0.08595966,2520.8,2520.0,3.9643123]
[1746946521884,0.08595966,2520.8,2520.1,0.03967441]
[1746946522291,4.75787332,2521.1,2520.1,0.03967441]
[1746946522812,0.08626489,2521.0,2520.1,0.03967269]
[1746946523022,4.05294854,2521.0,2520.0,3.9643123]
[1746946523219,3.96705033,2520.8,2520.1,0.39643123]
[1746946523379,0.08626489,2521.0,2520.1,0.39643123]
[1746946523578,4.05299327,2521.0,2520.1,0.39643123]
[1746946524527,0.08626489,2521.0,2520.1,0.39643123]
[1746946524682,0.08626489,2521.0,2520.2,0.03967272]
[1746946524882,0.08626489,2521.0,2520.2,0.47971435]
[1746946527033,4.05302954,2521.0,2520.2,0.44004163]
[1746946527327,1.7305506,2520.9,2520.2,0.44004163]
[1746946527533,5.69741835,2520.9,2520.2,0.44004163]
[1746946527718,0.08595966,2520.8,2520.2,0.44004163]
[1746946527914,5.6977899,2520.7,2520.3,3.217]
[1746946528232,0.08608841,2520.6,2520.3,3.217]
[1746946528632,3.96735298,2520.6,2520.4,3.217]
[1746946528982,0.08571875,2520.5,2520.4,3.217]
[1746946529411,1.7305506,2520.7,2520.4,3.217]
[1746946529601,0.08548365,2520.5,2520.4,3.217]
[1746946530003,0.08548365,2520.5,2520.4,3.5387]
[1746946530287,2.5457506,2520.9,2520.4,3.5387]
[1746946530586,0.21945217,2520.8,2520.4,3.5387]
[1746946530887,0.0790877,2520.7,2520.4,3.5387]
[1746946531302,1.7305506,2520.9,2520.4,3.5387]
[1746946531481,0.07893505,2520.6,2520.5,0.35387]
[1746946532088,1.7305506,2520.9,2520.5,0.35387]
[1746946532310,0.07893505,2520.6,2520.5,0.35387]
[1746946532521,1.7305506,2520.9,2520.5,0.35387]
[1746946532741,0.07893505,2520.6,2520.4,3.217]
[1746946532922,1.7305506,2520.9,2520.4,3.217]
[1746946533422,0.58656159,2520.8,2520.4,3.217]
[1746946534290,0.36664613,2520.8,2520.4,3.217]
[1746946534792,1.7305506,2521.3,2520.4,3.217]
[1746946534985,8.0,2521.5,2520.5,0.3217]
[1746946534986,1.7305506,2521.1,2520.5,0.3217]
[1746946535234,0.33161388,2521.0,2520.0,8.7463123]
[1746946535408,0.33161388,2521.0,2520.2,8.0]
[1746946535594,0.33161388,2521.0,2520.3,0.03967264]
[1746946535997,0.22009416,2520.9,2520.2,8.0]
[1746946536315,0.11106188,2520.8,2520.2,8.0]
[1746946536523,0.11106188,2520.8,2520.3,1.1217]
[1746946537033,4.71948147,2521.6,2520.4,0.0396704]
[1746946537034,1.7305506,2521.3,2520.4,0.0396704]
[1746946537208,0.11106188,2520.8,2520.4,0.0396704]
[1746946537397,1.7305506,2521.3,2520.4,0.0396704]
[1746946537592,0.3321836,2521.2,2520.4,0.0396704]
[1746946537925,0.3321836,2521.2,2520.4,8.91613704]
[1746946538437,0.22020611,2521.1,2520.4,8.95580307]
[1746946538640,0.22020611,2521.1,2520.4,8.91613704]
[1746946538836,0.11151972,2521.0,2520.4,8.91613704]
[1746946539432,0.7537,2521.6,2520.4,8.91613704]
[1746946539433,0.7537,2521.6,2520.5,0.03966439]
[1746946539627,2.4842506,2521.6,2520.5,1.22046959]
[1746946539927,5.69665999,2521.4,2520.5,1.1808052]
[1746946540328,1.7305506,2521.2,2520.5,1.1808052]
[1746946540697,0.11174862,2521.1,2520.5,1.1808052]
[1746946540897,0.11174862,2521.1,2520.6,0.91808052]
[1746946541110,0.11174862,2521.1,2520.3,1.1217]
[1746946541929,5.6966708,2521.4,2520.3,1.1217]
[1746946542329,4.07852561,2521.3,2520.3,1.1217]
[1746946542531,0.36675468,2521.2,2520.3,1.1217]
[1746946542833,0.33180155,2521.1,2520.3,1.1217]
[1746946543031,0.22005293,2521.1,2520.4,0.91217]
[1746946543533,1.7305506,2521.2,2520.4,0.91217]
[1746946544130,1.7305506,2521.2,2520.5,3.196]
[1746946545133,5.69661741,2521.4,2520.5,3.196]
[1746946545429,0.22005994,2521.3,2520.5,3.196]
[1746946545736,0.36671178,2521.2,2520.6,0.3196]
[1746946546527,3.96622902,2521.3,2520.6,0.3196]
[1746946546735,0.21999054,2521.1,2520.6,0.3196]
[1746946547433,5.69666187,2521.4,2520.6,0.3196]
[1746946547835,3.96626227,2521.3,2520.6,0.3196]
[1746946548033,5.69691691,2521.2,2520.6,0.3196]
[1746946548347,4.73034677,2521.1,2520.7,3.195]
[1746946548501,0.36680837,2521.0,2520.7,3.195]
[1746946548901,0.22004479,2520.9,2520.7,3.195]
[1746946549298,0.22004479,2520.9,2520.8,3.195]
[1746946549498,0.22004479,2521.0,2520.8,3.195]
[1746946550533,0.22004479,2520.9,2520.8,3.195]
[1746946551327,0.22004479,2521.0,2520.8,3.195]
[1746946551533,0.36718115,2520.9,2520.8,3.195]
[1746946551835,0.36718115,2520.9,2520.3,1.1217]
[1746946552040,5.69765503,2520.8,2520.5,3.195]
[1746946552242,3.96717898,2520.7,2520.5,3.195]
[1746946552409,0.36718115,2520.6,2520.4,3.195]
[1746946553041,0.22031474,2520.5,2520.4,3.195]
[1746946553601,0.22031474,2520.7,2520.4,3.195]
[1746946554442,0.22031474,2520.6,2520.4,3.195]
[1746946555341,0.22031474,2520.5,2520.4,3.195]
[1746946556239,1.00031474,2520.5,2520.4,3.195]
[1746946556439,3.96762418,2520.4,2519.9,14.279]
[1746946556743,1.7305506,2520.3,2519.9,14.279]
[1746946556941,0.22031474,2520.2,2519.9,14.279]
[1746946557455,0.22031474,2520.2,2520.1,1.7305506]
[1746946557961,4.74563584,2521.1,2520.0,8.0]
[1746946558614,4.74563584,2521.1,2520.1,0.03967231]
[1746946558810,0.22003838,2521.0,2520.1,0.03967231]
[1746946559318,0.36675345,2520.9,2520.1,0.03967231]
[1746946559524,0.58679183,2520.9,2520.2,8.0]
[1746946560438,0.7791,2521.1,2520.3,0.03966918]
[1746946560639,0.7791,2521.1,2520.2,8.0]
[1746946560849,0.7791,2521.1,2520.3,0.03966921]
[1746946561176,0.58679909,2521.0,2520.3,0.03966921]
[1746946561461,0.58679909,2521.0,2520.3,1.10160336]
[1746946561670,0.22004712,2520.9,2520.3,1.10160336]
[1746946562558,0.7791,2521.3,2520.3,1.10160336]
[1746946562559,0.22004712,2521.2,2520.3,1.10160336]
[1746946564543,0.36681973,2521.1,2520.3,1.10160336]
[1746946564728,0.36681973,2521.1,2520.3,1.06193415]
[1746946564927,0.36681973,2521.1,2520.5,8.0]
[1746946565447,0.36681973,2521.1,2520.6,0.03966909]
[1746946565628,2.5096506,2521.3,2520.6,0.03966909]
[1746946565962,4.9045506,2521.5,2520.6,0.03966909]
[1746946566162,9.64484713,2521.5,2520.5,8.0]
[1746946566365,9.64484713,2521.5,2520.6,1.21021934]
[1746946566667,0.22007893,2521.4,2520.6,1.21021934]
[1746946566862,0.58688426,2521.4,2520.6,1.21021934]
[1746946567067,0.58688426,2521.4,2520.7,0.0396658]
[1746946567271,0.22007893,2521.3,2520.7,0.0396658]
[1746946567475,0.22007893,2521.3,2520.7,0.92498851]
[1746946567952,0.36680533,2521.2,2520.7,0.92498851]
[1746946568648,0.36680533,2521.2,2520.8,0.03966581]
[1746946569177,2.4966506,2521.9,2520.7,10.65553911]
[1746946569849,0.7661,2521.9,2520.7,8.92498851]
[1746946570046,0.36673575,2521.8,2520.8,1.33062079]
[1746946570248,0.58677402,2521.8,2520.9,0.55]
[1746946570478,0.58677402,2521.8,2520.8,13.22221031]
[1746946570775,0.22003827,2521.8,2520.8,13.22221031]
[1746946571067,4.73080139,2522.3,2520.8,13.22221031]
[1746946571235,3.9648389,2522.2,2520.9,1.41471988]
[1746946571642,0.36644928,2522.1,2520.9,1.41471988]
[1746946571846,0.21988354,2522.0,2520.9,1.41471988]
[1746946572052,3.96582076,2521.6,2521.0,3.172]
[1746946572261,3.96582076,2521.6,2520.9,1.41471988]
[1746946572474,4.7317515,2521.7,2521.1,3.172]
[1746946572670,4.1856468,2521.6,2521.1,3.172]
[1746946572878,4.18562065,2521.6,2521.1,3.172]
[1746946573052,3.96616995,2521.4,2519.9,17.87631269]
[1746946573251,0.7661,2521.2,2520.2,3.42996723]
[1746946573475,3.96613113,2521.4,2520.3,8.0]
[1746946573776,4.18622293,2521.3,2520.3,8.0]
[1746946574147,4.33269527,2521.2,2520.3,8.0]
[1746946574542,4.33269527,2521.2,2520.2,3.42996723]
[1746946574543,0.21988354,2521.1,2520.2,3.42996723]
[1746946574743,4.18645222,2521.1,2520.3,0.60096395]
[1746946574938,0.7661,2521.0,2520.3,0.60096395]
[1746946575580,0.7661,2521.2,2520.3,0.60096395]
[1746946576089,0.36646652,2521.1,2520.3,0.60096395]
[1746946576382,0.36646652,2521.1,2520.4,0.40309312]
[1746946577083,0.7661,2521.2,2520.4,0.40309312]
[1746946577557,0.21993446,2521.1,2520.4,0.40309312]
[1746946578068,4.18652003,2521.1,2520.2,3.42996723]
[1746946578446,0.21993446,2521.1,2520.2,3.42996723]
[1746946578646,3.96657162,2521.1,2520.2,3.42996723]
[1746946579172,4.73250133,2521.2,2520.2,3.42996723]
[1746946580684,0.58701551,2521.1,2520.2,3.42996723]
[1746946580982,0.58701551,2521.1,2520.3,0.34299672]
[1746946581285,0.58701551,2521.1,2520.9,3.59731269]
[1746946581485,4.73107649,2522.1,2521.0,11.21165661]
[1746946581789,3.96520896,2522.0,2521.0,11.172]
[1746946581942,4.73109044,2522.1,2521.1,1.47693127]
[1746946582150,4.84198916,2522.1,2521.2,0.03965767]
[1746946582583,0.2201233,2522.0,2521.2,0.03965767]
[1746946582764,0.2201233,2522.0,2521.1,1.47693127]
[1746946582965,0.2201233,2522.0,2521.3,8.0]
[1746946583169,3.96448792,2522.4,2521.4,2.27111706]
[1746946583489,0.11135609,2522.3,2521.4,2.27111706]
[1746946583642,0.22006493,2522.2,2521.4,2.27111706]
[1746946583847,0.11089872,2522.1,2521.4,2.27111706]
[1746946584378,0.22006493,2522.2,2521.4,2.27111706]
[1746946584687,3.9129,2522.6,2521.5,9.02711171]
[1746946584886,3.159,2522.6,2521.6,0.03964727]
[1746946585073,5.01244408,2522.8,2521.6,0.03964727]
[1746946585074,0.11181338,2522.5,2521.7,3.172]
[1746946585270,0.11181338,2522.5,2521.8,0.03964649]
[1746946585586,0.11158474,2522.4,2521.8,0.32116465]
[1746946585751,3.96403706,2522.7,2521.9,0.03964649]
[1746946586087,0.33194707,2522.6,2521.9,0.03964649]
[1746946586970,0.112042,2522.6,2521.8,8.32116465]
[1746946587177,15.1216073,2523.0,2521.8,8.32116465]
[1746946587378,0.11272776,2522.9,2521.9,1.14931647]
[1746946587677,0.21980115,2522.8,2521.9,1.14931647]
[1746946587987,0.1122706,2522.7,2522.0,0.03964115]
[1746946588159,0.1122706,2522.7,2522.1,3.172]
[1746946588480,0.1122706,2522.7,2522.2,0.03964115]
[1746946588780,3.96370103,2522.9,2522.2,0.32116412]
[1746946588982,0.112042,2522.6,2522.2,0.32116412]
[1746946589187,4.71732952,2523.1,2522.2,0.36080528]
[1746946589485,0.11181338,2522.5,2522.2,0.36080528]
[1746946589688,4.18330632,2523.0,2522.2,0.36080528]
[1746946589890,0.11158474,2522.4,2522.2,0.36080528]
[1746946590094,0.21975076,2523.0,2522.2,0.36080528]
[1746946590292,0.11135609,2522.3,2522.2,0.36080528]
[1746946590505,4.71732019,2523.1,2522.2,0.36080528]
[1746946590670,4.71732019,2523.1,2522.2,8.36080528]
[1746946590864,0.1129563,2523.0,2522.3,1.15328053]
[1746946591065,3.9632557,2523.2,2522.4,0.03963723]
[1746946591265,0.0901822,2522.9,2522.5,3.171]
[1746946591469,3.96362859,2523.0,2522.5,3.171]
[1746946591690,0.08999935,2522.8,2522.5,3.171]
[1746946591885,0.0933695,2522.9,2522.5,3.171]
[1746946592192,8.0,2523.5,2522.6,0.03963914]
[1746946592372,0.07765554,2522.8,2522.6,0.03963521]
[1746946592783,0.07765554,2522.8,2522.5,3.60739197]
[1746946593486,3.96354927,2523.0,2522.5,3.60739197]
[1746946593687,0.08135221,2522.7,2522.5,3.60739197]
[1746946593887,3.96354927,2523.0,2522.5,3.60739197]
[1746946594094,0.08119981,2522.6,2522.5,3.60739197]
[1746946594598,3.96341547,2523.1,2522.5,3.60739197]
[1746946594799,0.08121786,2522.6,2522.5,3.171]
[1746946596463,0.1627968,2522.6,2522.5,3.171]
[1746946597401,0.08121786,2522.6,2522.5,3.171]
[1746946597604,0.16281485,2522.6,2522.5,3.171]
[1746946598278,0.08121786,2522.6,2522.5,3.171]
[1746946598474,0.08121786,2522.6,2522.5,3.4881]
[1746946599384,0.08121786,2522.6,2522.5,17.79473314]
[1746946599583,0.08121786,2522.6,2522.5,22.5841]
[1746946599784,0.08121786,2522.6,2522.5,20.8761]
[1746946602821,0.08121786,2522.6,2522.5,20.8731]
[1746946603024,0.08121786,2522.6,2522.5,14.5841]
[1746946603316,0.08121786,2522.6,2522.1,3.146]
[1746946603484,4.04545544,2522.6,2522.1,3.146]
[1746946603680,0.08371907,2522.5,2522.1,3.146]
[1746946604489,4.04807467,2522.5,2521.4,14.265]
[1746946604693,0.7701,2522.4,2521.6,8.0]
[1746946604905,0.08371907,2522.5,2521.7,1.4287]
[1746946605208,0.08356664,2522.4,2521.9,8.0]
[1746946605411,4.81548877,2522.6,2521.8,3.146]
[1746946605616,0.0834142,2522.3,2521.9,0.03964716]
[1746946605799,4.81548877,2522.6,2521.9,0.03964716]
[1746946606128,0.08371907,2522.5,2521.9,0.31856472]
[1746946606299,0.08371907,2522.5,2521.9,0.35821188]
[1746946606618,3.96457007,2522.4,2521.9,0.31856472]
[1746946606919,4.04683701,2522.4,2521.8,3.146]
[1746946607120,0.08226694,2522.4,2521.8,3.146]
[1746946607725,4.0468262,2522.4,2521.8,3.146]
[1746946607923,0.08226694,2522.4,2521.8,3.146]
[1746946608222,4.04677075,2522.4,2521.8,3.146]
[1746946608630,0.08226694,2522.4,2521.8,3.146]
[1746946608926,3.96439318,2522.5,2521.9,0.3146]
[1746946609099,0.0821145,2522.3,2521.9,0.3146]
[1746946609279,4.04678454,2522.4,2521.9,0.3146]
[1746946610631,3.9646376,2522.3,2521.9,0.3146]
[1746946610808,0.30233057,2522.3,2521.9,0.3146]
[1746946611126,4.26698633,2522.3,2521.9,0.3146]
[1746946611337,0.785,2522.2,2521.4,14.265]
[1746946611627,4.04644511,2522.1,2521.8,3.147]
[1746946612411,0.22021607,2522.0,2521.8,3.147]
[1746946612623,0.08112541,2521.9,2521.8,3.147]
[1746946613032,0.08112541,2521.9,2521.4,14.265]
[1746946613199,0.08112541,2521.9,2521.6,3.147]
[1746946614305,0.785,2522.2,2521.6,3.147]
[1746946614648,3.96526976,2521.9,2521.6,3.147]
[1746946614937,0.07806575,2521.8,2521.6,3.147]
[1746946615633,3.96517846,2522.0,2521.6,4.8882]
[1746946615967,0.07821825,2521.9,2521.6,4.8882]
[1746946616113,0.07821825,2521.9,2521.6,3.147]
[1746946616311,3.96502241,2522.1,2521.6,3.147]
[1746946616813,0.07837074,2522.0,2521.6,3.147]
[1746946617799,0.785,2522.2,2521.6,3.147]
[1746946618135,0.07852321,2522.1,2521.6,3.147]
[1746946618330,0.07852321,2522.1,2521.7,0.31866567]
[1746946618900,0.08121786,2522.6,2521.8,0.03964233]
[1746946619100,0.08121786,2522.6,2521.7,8.31866567]
[1746946619101,3.96432111,2522.5,2521.7,0.31866567]
[1746946619337,1.03736145,2522.4,2521.7,0.31866567]
[1746946619750,0.07890038,2522.3,2521.7,0.31866567]
[1746946619950,4.04360501,2522.3,2521.8,3.147]
[1746946620111,0.22006145,2522.2,2521.8,3.147]
[1746946620544,0.07873998,2522.1,2521.8,3.147]
[1746946621229,3.96465121,2522.3,2521.8,3.147]
[1746946621429,0.09464926,2522.2,2521.8,3.147]
[1746946621724,4.78182522,2522.4,2521.9,0.3147]
[1746946621924,0.0944663,2522.1,2521.9,0.3147]
[1746946622119,0.21990189,2522.3,2521.9,0.3147]
[1746946622337,0.09428333,2522.0,2521.9,0.3147]
[1746946622506,0.21990189,2522.3,2521.9,0.3147]
[1746946622711,0.09428333,2522.0,2521.9,0.3147]
[1746946623028,0.08121786,2522.6,2521.9,0.3147]
[1746946623226,0.07934976,2522.5,2521.9,0.3147]
[1746946623653,0.07934976,2522.5,2521.9,8.3147]
[1746946623966,0.07934976,2522.5,2522.0,1.45887]
[1746946624448,0.08121786,2522.6,2522.0,1.45887]
[1746946624449,0.08121786,2522.6,2522.3,8.0]
[1746946624613,0.08121786,2522.6,2522.4,3.147]
[1746946624813,0.08121786,2522.6,2522.5,3.147]
[1746946625043,0.16133409,2522.6,2522.5,3.147]
[1746946625227,0.08121786,2522.6,2522.5,3.4617]
[1746946625421,0.16335654,2522.6,2522.5,3.4617]
[1746946626342,0.08121786,2522.6,2522.5,3.4617]
[1746946626732,0.08121786,2522.6,2522.0,1.45887]
[1746946626931,0.08121786,2522.6,2522.1,3.147]
[1746946626932,0.7888,2522.5,2522.1,3.147]
[1746946627254,0.08181578,2522.4,2522.2,0.03964591]
[1746946627453,0.08121786,2522.6,2522.2,0.03964591]
[1746946627654,0.08196821,2522.5,2522.2,0.03964591]
[1746946627851,0.08196821,2522.5,2522.2,0.3583105]
[1746946628152,0.08121786,2522.6,2522.2,0.3583105]
[1746946628669,0.08196821,2522.5,2522.2,0.31866459]
[1746946629167,0.08196821,2522.5,2522.3,0.03964152]
[1746946629336,0.08196821,2522.5,2522.2,0.31866459]
[1746946629726,0.08196821,2522.5,2522.3,0.03964156]
[1746946630634,0.08121786,2522.6,2522.3,0.03964156]
[1746946630816,0.08121786,2522.6,2522.3,0.03963921]
[1746946631024,0.08196821,2522.5,2522.3,0.03963921]
[1746946632136,0.90536821,2522.5,2522.1,3.147]
[1746946632518,0.8234,2522.5,2522.1,3.147]
[1746946632832,0.08181578,2522.4,2522.1,3.147]
[1746946633034,0.08181578,2522.4,2522.2,0.03964561]
[1746946633230,0.08121786,2522.6,2522.2,0.03964561]
[1746946633463,0.08196821,2522.5,2522.2,0.03964561]
[1746946634969,0.08196821,2522.5,2522.2,8.03964561]
[1746946635175,0.08121786,2522.6,2522.2,8.03964561]
[1746946635470,0.08121786,2522.6,2522.3,1.15013456]